Cogmind - Beta 14 @@@ ROGUE MODE // 2024.09.29 @ 21:28:33 Player: Komeiji O. Result: Destroyed by G-47 Trooper with Particle Gun Performance ------------- Evolutions (0) 0 Regions Visited (1) 200 Robots Destroyed (7) 35 Value Destroyed (227) 227 Prototype IDs (0) 0 Alien Tech Used (0) 0 Bonus (0) 0 TOTAL SCORE: 462 Bonus ------- None Cogmind --------- Core Integrity 0/250 Matter 279/300 Energy 100/100 System Corruption 0% Temperature Warning (359) Movement Walking (120) Location -10/Materials Parts ------- > --- POWER (1) -------- (None) > --- PROPULSION (2) --- Aluminum Leg > --- UTILITY (2) ------ Signal Interpreter Targeting Computer > --- WEAPON (2) ------- Particle Gun Datajack > --- INVENTORY (5) ---- Ion Engine Ion Engine High-capacity Storage Unit Small Laser Peak State ------------ > --- POWER ------------ Light Nuclear Core > --- PROPULSION ------- Aluminum Leg Aluminum Leg > --- UTILITY ---------- Structural Scanner Targeting Computer > --- WEAPON ----------- Small Laser Particle Gun > --- INVENTORY -------- Ion Engine Ion Engine High-capacity Storage Unit EM Pulse Gun Small Laser [Rating: 10] Favorites ----------- Power Light Ion Engine Engine Light Ion Engine Power Core Light Nuclear Core Propulsion Aluminum Leg Leg Aluminum Leg Utility Structural Scanner Device Structural Scanner Storage High-capacity Storage Unit Processor Targeting Computer Weapon Small Laser Energy Gun Small Laser Ballistic Gun Light Assault Rifle Special Melee Weapon Datajack Build | -11 -10 ------- Run | Yrd Mat Slots Evolved . | . . Power . | . . Propulsion . | . . Utility . | . . Weapon . | . . Parts Attached 25 | 6 19 Power 5 | 1 4 Engine 4 | 1 3 Core 1 | . 1 Reactor . | . . Propulsion 6 | 2 4 Treads . | . . Leg 6 | 2 4 Wheel . | . . Hover . | . . Flight . | . . Utility 5 | 1 4 Device 2 | 1 1 Storage 1 | . 1 Processor 2 | . 2 Hackware . | . . Protection . | . . Artifact . | . . Weapon 9 | 2 7 Energy Gun 7 | 1 6 Energy Cannon . | . . Ballistic Gun 1 | 1 . Ballistic Cannon . | . . Launcher . | . . Special Weapon . | . . Impact Weapon . | . . Slashing Weapon . | . . Piercing Weapon . | . . Special Melee Weapon 1 | . 1 Unidentified Prototypes . | . . Parts Lost 7 | . 7 Power 2 | . 2 Propulsion 3 | . 3 Utility . | . . Weapon 2 | . 2 Highest Loss Streak 4 | . 4 To Critical Strikes . | . . Average Slot Usage (%) 96 | . 96 Engine 11 | . 11 Core 2 | . 2 Leg 26 | . 26 Device 13 | . 13 Storage 5 | . 5 Processor 7 | . 7 Energy Gun 21 | . 21 Ballistic Gun 6 | . 6 Peak Build Rating 10 | 6 10 Average Rating 6 | 4 7 On Entrance 3 | . 6 Naked Turns . | . . Heaviest Build 48 | 6 48 Greatest Support 20 | 20 20 Greatest Overweight (x) 4 | . 4 Average Overweight (x) . | . . Largest Inventory Capacity 20 | 5 20 Average Capacity 9 | 5 10 Most Carried 6 | 3 6 Average Carried 4 | . 4 Final Capacity 5 | 5 5 Final Carried 4 | 3 4 Class Distribution -------------------- 60% | Mutant 39% | Scavenger-Mutant Dominant Class ---------------- Mutant | -10/Materials Resources | -11 -10 ----------- Run | Yrd Mat Matter Collected 397 | 265 132 Remotely . | . . Salvage Created 266 | 37 229 Parts 17 | 3 14 Haulers Intercepted . | . . Recyclers Shooed . | . . Parts Field Recycled . | . . Retrieved Matter . | . . Parts Self-Destructed . | . . Prevented . | . . Kills | -11 -10 ------- Run | Yrd Mat Combat Hostiles Destroyed 7 | 1 6 Guns 7 | 1 6 Classes Destroyed 2 | 1 1 Swarmer 1 | . 1 Grunt 6 | 1 5 Best Kill Streak 2 | 1 2 Combat Bots Only 2 | 1 2 Max Kills in Single Turn 1 | 1 1 Gunslinging . | . . Exploded . | . . Melee . | . . Uniques/NPCs Destroyed . | . . Combat | -11 -10 -------- Run | Yrd Mat Hostile Shots Fired 126 | 8 118 Missed 30 | . 30 Damage Taken 1086 | 90 996 Core 255 | . 255 Absorbed by Shields . | . . Core Remaining (%) 100 | 100 . Volleys Fired 33 | 5 28 Largest 2 | 2 2 Hottest 105 | 60 105 Shots Fired 63 | 10 53 Gun 63 | 10 53 Cannon . | . . Launcher . | . . Special . | . . Kinetic 7 | 5 2 Thermal 53 | 5 48 Explosive . | . . Electromagnetic 3 | . 3 Robot Hit Streak 7 | 4 7 Robot Miss Streak 5 | 1 5 Penetration Max . | . . Secondary Targets 1 | . 1 Max Gunslinging Chain 1 | . 1 Shots Hit Robots 36 | 6 30 Core Hits 15 | 2 13 Critical Kills . | . . Critical Parts Destroyed . | . . Critical Strikes 1 | . 1 Burn 1 | . 1 Melee Attacks . | . . Impact . | . . Slashing . | . . Piercing . | . . Sneak Attacks . | . . Combat Hostiles . | . . Follow-up Attacks . | . . Damage Inflicted 425 | 64 361 Guns 421 | 64 357 Cannons . | . . Explosions . | . . Melee . | . . Ramming 4 | . 4 Kinetic 23 | 23 . Thermal 362 | 41 321 Explosive . | . . Electromagnetic 36 | . 36 Impact . | . . Slashing . | . . Piercing . | . . Highest Corruption . | . . Average Corruption . | . . Corruption Purged . | . . Corruption Blocked . | . . Overload Shots . | . . Overflow Damage . | . . Projectiles . | . . Explosions . | . . Melee . | . . Knockbacks . | . . Impact . | . . Kinetic . | . . Secondary . | . . Self-Inflicted Damage . | . . Shots . | . . Rammed . | . . Targets Rammed 2 | . 2 Kicked 2 | . 2 Crushed . | . . Highest Temperature 350 | 58 350 Average Temperature 107 | 25 119 Received Heat Transfer 552 | 48 504 Siege Activations . | . . Robots Corrupted . | . . Combat Hostiles . | . . Parts Fried . | . . Impact Corruptions . | . . Robots Melted . | . . Combat Hostiles . | . . Parts Melted 1 | . 1 Heat Transferred 934 | 100 834 Parts Sabotaged . | . . Parts Stolen . | . . Parts Stripped . | . . Power Chain Reactions . | . . Alert | -11 -10 ------- Run | Yrd Mat Peak Influence 75 | 20 75 Initial 13 | . 13 Average 22 | 4 25 Maximum Alert Level . | . . Low Security (%) 100 | 100 100 Level 1 . | . . Level 2 . | . . Level 3 . | . . Level 4 . | . . Level 5 . | . . High Security . | . . Max Security . | . . Squads Dispatched 2 | . 2 Investigation 1 | . 1 Extermination . | . . Reinforcement 1 | . 1 Assault . | . . Garrison . | . . Intercept . | . . Searches Triggered . | . . Construction Impeded . | . . Haulers Reinforced . | . . Active Scanning Responses . | . . Cargo Convoy Interrupts . | . . Stealth | -11 -10 --------- Run | Yrd Mat Distress Signals . | . . Communications Jammed . | . . Distress Signals . | . . Times Spotted 14 | 1 13 Peak Tracking Total 4 | 1 4 Tactical Retreats . | . . Traps | -11 -10 ------- Run | Yrd Mat Traps Triggered . | . . Indirectly . | . . Trap Hack Attempts . | . . Triggered . | . . Disarmed . | . . Reprogrammed . | . . Reused . | . . Traps Extracted . | . . Installed . | . . Triggered . | . . Machines | -11 -10 ---------- Run | Yrd Mat Machines Disabled . | . . Max in Single Turn . | . . Machines Repaired . | . . Machines Dismantled . | . . Machines Sabotaged . | . . Overloaded Fab Kills . | . . Hacking | -11 -10 --------- Run | Yrd Mat Machines Accessed 3 | . 3 Terminals 3 | . 3 Fabricators . | . . Repair Stations . | . . Recycling Units . | . . Scanalyzers . | . . Garrison Access . | . . Total Hacks 10 | . 10 Successful 4 | . 4 Failed 6 | . 6 Catastrophic 1 | . 1 Database Lockouts . | . . Manual . | . . Terminals 10 | . 10 Fabricators . | . . Repair Stations . | . . Recycling Units . | . . Scanalyzers . | . . Garrison Access . | . . Terminal Hacks 4 | . 4 Record 2 | . 2 Emergency Access Points 1 | . 1 Reinforcement Status 1 | . 1 Fabricator Hacks . | . . Repair Station Hacks . | . . Recycling Unit Hacks . | . . Scanalyzer . | . . Garrison Access Hacks . | . . Unauthorized Hacks . | . . Terminals . | . . Fabricators . | . . Repair Stations . | . . Recycling Units . | . . Scanalyzers . | . . Garrison Access . | . . Data Cores Recovered . | . . Used . | . . Hacking Detections 1 | . 1 Full Trace Events 1 | . 1 Feedback Events . | . . Feedback Blocked . | . . Robot Schematics Acquired . | . . Robots Built . | . . Authchips . | . . Time . | . . Total Robot Build Rating . | . . Part Schematics Acquired . | . . Parts Built . | . . Authchips . | . . Time . | . . Total Part Build Rating . | . . Parts Repaired . | . . Time . | . . Parts Recycled . | . . Recycled Matter . | . . Retrieved Matter . | . . Retrieved Components . | . . Parts Scanalyzed . | . . Part Schematics Acquired . | . . Parts Damaged . | . . Bothacking | -11 -10 ------------ Run | Yrd Mat Used RIF Installer . | . . Robots Hacked . | . . Non-combat . | . . Combat . | . . Robot Hacks Applied . | . . Relay Couplers Released . | . . Fabnet Peak Effective % . | . . Robots Rewired . | . . Allies Hacked . | . . Hacks Repelled . | . . Allies | -11 -10 -------- Run | Yrd Mat Total Allies . | . . Largest Group . | . . Highest-Rated Group . | . . Highest-Rated Ally . | . . Total Orders . | . . Ally Attacks . | . . Total Damage . | . . Kills . | . . Allies Corrupted . | . . Allies Melted . | . . Intel | -11 -10 ------- Run | Yrd Mat Robot Analysis Total . | . . Derelict Logs Recovered . | . . Drone Launches . | . . Drone Recoveries . | . . Exploration | -11 -10 ------------- Run | Yrd Mat Turns Passed 908 | 129 779 Spaces Moved 520 | 98 422 Core 21 | 21 . Treads . | . . Legs 499 | 77 422 Wheels . | . . Hover . | . . Flight . | . . Fastest Speed 50 | 50 120 Average Speed 145 | 105 154 Slowest Speed 400 | 120 400 Overloaded Moves . | . . Propulsion Burnouts . | . . Robots Hopped . | . . Cave-ins Triggered . | . . Exploration Rate (%) 18 | 7 30 Regions Visited 1 Branch Regions . Pre-discovered Areas . | . . Known Exits Taken . | . . Unknown Exits Taken 1 | 1 . Scrap Searched . | . . Spaces Dug . | . . Terrain Destroyed . | . . Melee . | . . Projectile . | . . AOE . | . . Terrain Rammed . | . . Walls Destroyed . | . . Machines Disabled . | . . Actions | -11 -10 --------- Run | Yrd Mat Total 607 | 112 495 Wait 7 | . 7 Move 519 | 97 422 Hop . | . . Pick Up 9 | 4 5 Fast Attach 7 | 5 2 Attach 6 | 1 5 Detach 1 | . 1 Swap 12 | . 12 Drop 8 | . 8 Fire 33 | 5 28 Melee . | . . Ram . | . . Kick 2 | . 2 Crush . | . . Escape Stasis . | . . Rewire 3 | . 3 Trap . | . . Miscellaneous . | . . Route ------- -11/Scrapyard -10/Materials History --------- Turn | Location | Event 2 | -11/Scrapyard | Met Revision 17 76 | -11/Scrapyard | Discovered new exit (range 8) 130 | -11/Scrapyard | Entered Materials 314 | -10/Materials | Build established: Mutant 523 | -10/Materials | Lost 4 parts (1p2n1w) 827 | -10/Materials | Build established: Scavenger-Mutant 886 | -10/Materials | Core integrity fell below 50% 903 | -10/Materials | Core integrity fell below 20% 909 | -10/Materials | Destroyed by G-47 Trooper with Particle Gun Last Messages --------------- stations can complete complex tasks more quickly. 00868_ Dropped Sml. Laser. 00869_ Acquired Datajack. 00876_ Acquired Signal Interpreter. 00883_ Critical hit (Burn: +37). 00888_ G-47 Trooper shuts down. 00888_ G-47 Trooper suffers critical hit (Burn). 00896_ Kicked G-34 Mercenary out of the way. 00897_ Attempting to rewire G-47 Trooper. 00898_ Aluminum Leg destroyed. 00899_ Attempting to rewire G-47 Trooper. 00900_ S-10 Pest destroyed. 00901_ G-47 Trooper reactivates. 00903_ Kicked G-47 Trooper. 00904_ EM Pulse Gun destroyed. 00905_ Lgt. Nuclear Core destroyed. 00907_ Critical hit (Burn: +37). 00907_ G-34 Mercenary destroyed. 00909_ S-10 Pest destroyed. Map ----- +----------------------------------------------------+ | | | ??????????################???????????????? | | ??????????## """ """ ##???????????????? | | ??????????## """"""""" ##????????????#### | | ??????????## """"" " ################## | | ?????????? # ################ | | ?#####"??? # + T | | ?#####"??? #######+###### ############ | | ?## #"??? # [ *%= ############# | | ?## # ??? # =% [ ############# | | ?## # =[ + ######### ######## ##?## | | ### # ? # ######### # """ # ##?## | | ### ####### ###????## # """ #[ ##### | | ## ##### ##????## # """ + ! ##### | | ## ##????## # # | | ## T ##????## # # | | ##^ ##### # ??"? # # # | | ###+######## ## ??"? # ##+##### """ | | # ##?### ## ? ? + ## ##### """"" | | # ##??## ##?? ?? # ## ##### """"" | | # ##?### ## ? ?? # ##+##### """"" | | # """ ##?### ## # # ## """ | | # """ ##?## ##+##### # " ## | | # """ ##?## # T ## | | # ##?## g # " ## | | # """ ##?## ##@##### # # | | # """ ##?### #*%[[ ## # """ + | | # """ ##?### #!%=%=## # """ # | | # ##??## #[ ""a##^ # """ ####+### | | # ##??## # T" ## ^# ## # | | ########??## #s "" ## # ## """ # | | ########??## # ## # %## """ # | | ??????????## #####+## # ## """ # ? | | ?????????? #### ##+##### """ # ?? | | ??????????? ##???? ##### """ # ?? | | ????????? ????? ??????## # ?? | | ?????????### ?????? ??????######## ?? | | ????????? # ?????? ??????######## ?? | | ?????????? # ==?????? ""????????????????? | | ?????????? # ==?????????????????????????? | | ?????????????????????????????????????????? | | ?????????????????????????????????????????? | | ?????????????????????????????????????????? | | ?????????????????????????????????????????? | | ?????????????????????????????????????????? | | ?????????????????????????????????????????? | | ?????????????????????????????????????????? | | ?????????????????????????????????????????? | | ?????????????????????????????????????????? | | ?????????????????????????????????????????? | +----------------------------------------------------+ Best States ------------- Heat Dissipation 35 Energy Generation 14 Energy Capacity 250 Matter Stores 300 Matter Capacity 300 Sight Range 16 Terrain Scan Density 10 Evasion (%) 55 Targeting Accuracy 5 Item Schematics ----------------- None Robot Schematics ------------------ None Fabricated ------------ Nothing Alien Tech Used ----------------- None Achievements -------------- One Hack Too Far Challenges ------------ None Game ------ Seed TerrabombBattleMount Manual? 0 Play Time 00:14:28 Cumulative 1.8 hours Start 2024.09.29 @ 21:15:01 End 2024.09.29 @ 21:28:33 Sessions 1 Manual Loads 0 Difficulty Rogue Special Mode None Game No. 3 Rogue 3 Adventurer 0 Explorer 0 Win Type - Total 0 Types 0/0/0/0/0/0/0/0/0 Lore% 0 Gallery% 3 Achievement% 3 Wizard Run 0 Options --------- Layout 1 ASCII 0 Keyboard 0 Movement Vi Keybinds 0 Fullscreen 1 Font 48/Terminus++ Map View 50x35 Zoom Use 0% Tactical HUD 1 Map Filters NONE Filters NONE Steam 0 RUN: f1a83124-b470-48d3-89d4-e26d497217ac